fUST/lending_fUST_20251021
["ID","MTS","AMOUNT","RATE_DAILY","PERIOD"]
[391984475,1761056947168,-300.0,0.00023999,2]
[391984476,1761056947188,-1732.97857595,0.00024,60]
[391984477,1761057005809,-290.64945393,0.000235,2]
[391984478,1761057005832,-75.05426117,0.000235,2]
[391984479,1761057009556,174.77,0.00018803,30]
[391984480,1761057009978,349.53,0.00021937,30]
[391984530,1761057032114,-124.94573883,0.000235,2]
[391984531,1761057032123,-154.17739002,0.00023999,2]
[391984532,1761057032176,-145.82260998,0.00023999,2]
[391984533,1761057032186,-2665.69738447,0.00024,60]
[391984534,1761057032296,-5805.40878831,0.00024,60]
[391984535,1761057032306,-168.59,0.00024,14]
[391984536,1761057032315,-9722.09214152,0.00024,30]
[391984537,1761057032325,-524.3,0.00025071,30]
[391984538,1761057032334,-426.81050959,0.00025926,2]
[391984539,1761057032343,-29034.35527815,0.00026,30]
[391984540,1761057032353,-420.0,0.00026026,2]
[391984541,1761057032363,-261.0,0.00026027,40]
[391984542,1761057032371,-180.45245279,0.000275,2]
[391984543,1761057032380,-415.41584899,0.00027887,2]
[391984544,1761057032390,-699.07,0.00028205,30]
[391984545,1761057032399,-587.0,0.00028223,2]
[391984547,1761057032408,-426.81050954,0.00028994,2]
[391984548,1761057032417,-500.0,0.0003024,5]
[391984549,1761057032426,-313.0,0.00030247,14]
[391984551,1761057032436,-823.0,0.00030607,2]
[391984554,1761057032445,-150.999999,0.00031,2]
[391984558,1761057032454,-250.0,0.00031051,2]
[391984561,1761057032463,-154.632396,0.00031236,20]
[391984562,1761057032473,-156.983889,0.00031236,20]
[391984564,1761057032482,-21519.69843317,0.00031275,2]
[391984565,1761057032493,-873.83,0.00031339,30]
[391984567,1761057032502,-154.632396,0.00031655,20]
[391984568,1761057032511,-156.983889,0.00031655,20]
[391984569,1761057032520,-165.319059,0.00031655,20]
[391984570,1761057032530,-153.668232,0.00031655,20]
[391984571,1761057032544,-160.0,0.000317,2]
[391984572,1761057032553,-426.81050954,0.00032061,2]
[391984573,1761057032563,-154.632396,0.00032073,20]
[391984574,1761057032573,-151.1452,0.00032073,20]
[391984575,1761057032582,-156.983889,0.00032073,20]
[391984576,1761057032591,-160.936962,0.00032073,20]
[391984577,1761057032601,-165.319059,0.00032073,20]
[391984578,1761057032610,-153.668232,0.00032073,20]
[391984579,1761057032620,-165.319059,0.00032073,20]
[391984580,1761057032629,-215.135529,0.00032073,20]
[391984581,1761057032638,-1437.46,0.00032099,2]
[391984582,1761057032647,-15792.495867,0.000321,2]
[391984583,1761057032657,-160.0,0.00032174,2]
[391984584,1761057032667,-478.0,0.00032245,15]
[391984585,1761057032677,-260.0,0.00032248,2]
[391984586,1761057032687,-478.0,0.00032345,15]
[391984587,1761057032696,-478.0,0.00032445,15]
[391984588,1761057032705,-478.0,0.00032545,15]
[391984589,1761057032714,-500.0,0.00032609,5]
[391984590,1761057032724,-478.0,0.00032645,15]
[391984591,1761057032733,-172.287,0.000327,33]
[391984592,1761057032743,-478.0,0.00032745,15]
[391984593,1761057032752,-478.0,0.00032845,15]
[391984594,1761057032761,-223.20161216,0.00032877,2]
[391984595,1761057032771,-200.0,0.000329,120]
[391984596,1761057032780,-478.0,0.00032945,60]
[391984597,1761057032792,-478.0,0.00033045,60]
[391984598,1761057032801,-478.0,0.00033145,60]
[391984599,1761057032811,-1000.0,0.00033157,5]
[391984600,1761057032820,-1152.0,0.00033191,2]
[391984601,1761057032829,-478.0,0.00033245,60]
[391984602,1761057032838,-1270.21469188,0.000333,120]
[391984603,1761057032848,-181.09763267,0.000333,120]
[391984604,1761057032857,-169.98413699,0.000333,120]
[391984605,1761057032866,-357.97469394,0.000333,120]
[391984606,1761057032876,-214.32005644,0.000333,120]
[391984607,1761057032885,-198.59247334,0.000333,120]
[391984608,1761057032894,-1213.14370499,0.000333,120]
[391984609,1761057032904,-192.76534299,0.000333,120]
[391984610,1761057032913,-188.27459274,0.000333,120]
[391984611,1761057032923,-478.0,0.00033345,60]
[391984612,1761057032932,-478.0,0.00033445,60]
[391984613,1761057032941,-478.0,0.00033545,60]
[391984614,1761057032950,-478.0,0.00033645,60]
[391984615,1761057032960,-1500.0,0.00033705,5]
[391984616,1761057032970,-478.0,0.00033745,60]
[391984617,1761057032981,-203.06,0.00033845,60]
[391984618,1761057032992,-478.0,0.00033845,60]
[391984619,1761057033002,-500.0,0.00033931,30]
[391984620,1761057033013,-203.06,0.00033945,60]
[391984621,1761057033025,-478.0,0.00033945,60]
[391984622,1761057033037,-2278.22,0.0003395,10]
[391984623,1761057033048,-1194.7,0.0003396,10]
[391984624,1761057033059,-5057.91863688,0.0003398,2]
[391984625,1761057033070,-569.01362876,0.0003399,60]
[391984626,1761057033081,-1298.0,0.00034,7]
[391984627,1761057033092,-203.06,0.00034045,60]
[391984628,1761057033102,-478.0,0.00034045,60]
[391984629,1761057033113,-203.06,0.00034145,60]
[391984630,1761057033122,-478.0,0.00034145,60]
[391984631,1761057033132,-500.0,0.00034205,30]
[391984632,1761057033142,-203.06,0.00034245,60]
[391984633,1761057033152,-478.0,0.00034245,60]
[391984634,1761057033163,-1437.46,0.00034299,2]
[391984635,1761057033174,-1270.21469188,0.000343,120]
[391984636,1761057033185,-181.09763267,0.000343,120]
[391984637,1761057033195,-169.98413699,0.000343,120]
[391984638,1761057033210,-357.97469394,0.000343,120]
[391984639,1761057033221,-214.32005644,0.000343,120]
[391984640,1761057033230,-198.59247334,0.000343,120]
[391984641,1761057033241,-1213.14370499,0.000343,120]
[391984642,1761057033250,-192.76534299,0.000343,120]
[391984643,1761057033261,-203.06,0.00034345,60]
[391984644,1761057033271,-478.0,0.00034345,60]
[391984645,1761057033282,-203.06,0.00034445,60]
[391984646,1761057033298,-478.0,0.00034445,60]
[391984647,1761057033308,-1048.6,0.00034473,30]
[391984648,1761057033318,-500.0,0.00034479,30]
[391984649,1761057033329,-1000.0,0.000345,15]
[391984650,1761057033339,-1400.0,0.000345,14]
[391984651,1761057033349,-203.06,0.00034545,60]
[391984652,1761057033360,-478.0,0.00034545,60]
[391984653,1761057033371,-203.06,0.00034645,60]
[391984654,1761057033381,-478.0,0.00034645,60]
[391984655,1761057033393,-904.6878942,0.000347,30]
[391984656,1761057033403,-850.85,0.00034702,3]
[391984657,1761057033414,-425.43,0.00034702,3]
[391984658,1761057033425,-212.71,0.00034702,3]
[391984659,1761057033435,-638.17,0.00034702,3]
[391984660,1761057033446,-36729.8928091,0.00034712,2]
[391984661,1761057033457,-6497.8044297,0.00034712,2]
[391984662,1761057033467,-10513.0,0.00034712,2]
[391984663,1761057033477,-151.8291059,0.00034712,30]
[391984664,1761057033491,-151.8291059,0.00034712,30]
[391984665,1761057033502,-151.8291059,0.00034712,30]
[391984666,1761057033513,-151.8291059,0.00034712,30]
[391984667,1761057033523,-151.8291059,0.00034712,30]
[391984668,1761057033537,-151.8291059,0.00034712,30]
[391984669,1761057033547,-151.8291059,0.00034712,30]
[391984670,1761057033557,-151.82,0.00034712,30]
[391984671,1761057033567,-157.45240611,0.00034712,30]
[391984672,1761057033578,-157.45240611,0.00034712,30]
[391984673,1761057033588,-157.45240611,0.00034712,30]
[391984674,1761057033598,-157.45240611,0.00034712,30]
[391984675,1761057033608,-157.45240611,0.00034712,30]
[391984676,1761057033619,-157.45240611,0.00034712,30]
[391984677,1761057033630,-157.45240611,0.00034712,30]
[391984678,1761057033639,-157.45240611,0.00034712,30]
[391984679,1761057033650,-157.45240611,0.00034712,30]
[391984680,1761057033660,-157.45240611,0.00034712,30]
[391984681,1761057033670,-157.45240611,0.00034712,30]
[391984682,1761057033681,-157.45240611,0.00034712,30]
[391984683,1761057033692,-157.45240611,0.00034712,30]
[391984684,1761057033702,-157.45240611,0.00034712,30]
[391984685,1761057033713,-157.45240611,0.00034712,30]
[391984686,1761057033723,-157.45240611,0.00034712,30]
[391984687,1761057033733,-157.45240611,0.00034712,30]
[391984688,1761057033744,-157.45,0.00034712,30]
[391984689,1761057033755,-203.06,0.00034745,60]
[391984690,1761057033766,-478.0,0.00034745,60]
[391984691,1761057033776,-500.0,0.00034753,30]
[391984692,1761057033788,-178.51069595,0.00034766,7]
[391984693,1761057033799,-6535.06715801,0.00034767,2]
[391984694,1761057033809,-200.0,0.000348,120]
[391984695,1761057033818,-155.0,0.00034812,2]
[391984696,1761057033827,-150.0,0.00034812,2]
[391984697,1761057033836,-250.0,0.00034812,30]
[391984698,1761057033846,-250.0,0.00034812,30]
[391984699,1761057033855,-374.845508,0.00034812,30]
[391984700,1761057033865,-250.0,0.00034812,10]
[391984701,1761057033876,-250.0,0.00034812,10]
[391984702,1761057033887,-250.0,0.00034812,10]
[391984703,1761057033897,-250.0,0.00034812,10]
[391984704,1761057033907,-250.501735,0.00034812,10]
[391984705,1761057033916,-2175839.97306218,0.00034812,20]
[391984706,1761057033930,-587.17907952,0.00034812,20]
[391984718,1761057038225,-287.27819,0.000329,120]
[391984719,1761057038237,-188.2921001,0.00034811,7]
[391984720,1761057038249,-2014.827847,0.00034812,20]
[391984721,1761057038264,-10526.6704502,0.00034812,20]
[391984722,1761057038277,-11643.92303689,0.00034812,20]
[391984723,1761057038293,-12101.6,0.00034812,20]
[391984724,1761057038306,-2491961.0820566,0.00034812,20]
[391984725,1761057038319,-6379.4499,0.00034812,20]
[391984772,1761057043384,-429.11,0.00032073,15]
[391984773,1761057043395,-315.89,0.00034802,10]
[391984788,1761057046812,-429.11,0.00032273,15]
[391984789,1761057046823,-429.11,0.00032373,15]
[391984790,1761057046834,-429.11,0.00032473,15]
[391984791,1761057046982,-429.11,0.00032573,15]
[391984792,1761057047002,-429.11,0.00032673,15]
[391984793,1761057047013,-429.11,0.00032773,15]
[391984794,1761057047023,-429.11,0.00032873,15]
[391984795,1761057047034,-429.11,0.00032973,60]
[391984796,1761057047044,-429.11,0.00033073,60]
[391984797,1761057047056,-429.11,0.00033173,60]
[391984798,1761057047066,-429.11,0.00033273,60]
[391984799,1761057047076,-429.11,0.00033373,60]
[391984800,1761057047086,-429.11,0.00033473,60]
[391984801,1761057047096,-429.11,0.00033573,60]
[391984802,1761057047106,-429.11,0.00033673,60]
[391984803,1761057047117,-429.11,0.00033773,60]
[391984804,1761057047127,-429.11,0.00033873,60]
[391984805,1761057047137,-429.11,0.00033973,60]
[391984806,1761057047147,-429.11,0.00034073,60]
[391984807,1761057047158,-429.11,0.00034173,60]
[391984808,1761057047168,-429.11,0.00034273,60]
[391984809,1761057047178,-429.11,0.00034373,60]
[391984810,1761057047188,-429.11,0.00034473,60]
[391984811,1761057047199,-429.11,0.00034573,60]
[391984812,1761057047208,-429.11,0.00034673,60]
[391984813,1761057047219,-303.75000001,0.00034802,10]
[391984814,1761057047231,-1278.86999999,0.00034802,10]
[391984815,1761057047242,-14322.83666553,0.00034812,20]
[391984816,1761057047254,-333646.6140135,0.00034812,20]
[391984817,1761057047264,-477.79534367,0.00034812,2]
[391984818,1761057047274,-91493.16729503,0.00034812,2]
[391984819,1761057047282,-300.0,0.00034812,2]
[391984820,1761057047291,-22718.3668233,0.00034812,2]
[391984821,1761057047301,-3893.10441954,0.00034812,2]
[391984822,1761057047311,-812.25655075,0.00034812,2]
[391984823,1761057047320,-877.33712686,0.00034812,32]
[391984824,1761057047330,-259.01545591,0.00034812,2]
[391984825,1761057047339,-297.81392319,0.00034812,2]
[391984826,1761057047348,-328.0399052,0.00034812,2]
[391984827,1761057047357,-292.76778766,0.00034812,2]
[391984828,1761057047366,-51845.21832731,0.00034812,2]
[391984829,1761057047375,-639.2462548,0.00034812,2]
[391984830,1761057047384,-1366.12565921,0.00034812,2]
[391984831,1761057047393,-157.11266514,0.00034812,2]
[391984832,1761057047402,-419.0517073,0.00034812,2]
[391984833,1761057047412,-6312.50775792,0.00034812,2]
[391984834,1761057047421,-158.11512826,0.00034812,2]
[391984835,1761057047431,-31968.82404711,0.00034812,2]
[391984836,1761057047440,-242.10386531,0.00034812,10]
[391984837,1761057047449,-30537.43731561,0.00034812,2]
[391984838,1761057047459,-189.75840641,0.00034812,2]
[391984839,1761057047469,-1401.27860835,0.00034812,2]
[391984840,1761057047480,-5913.99073976,0.00034812,2]
[391984841,1761057047490,-10714.04945435,0.00034812,2]
[391984842,1761057047503,-653.17084423,0.00034812,2]
[391984843,1761057047515,-203.58778624,0.00034812,2]
[391984844,1761057047525,-2920.0,0.00034812,2]
[391984845,1761057047536,-10878.82874006,0.00034812,2]
[391984846,1761057047548,-1447.05785181,0.00034812,2]
[391984847,1761057047559,-386.01933489,0.00034812,2]
[391984848,1761057047571,-201.95964407,0.00034812,2]
[391984849,1761057047581,-457.8734925,0.00034812,30]
[391984850,1761057047592,-300.0,0.00034812,30]
[391984851,1761057047602,-3156.53541242,0.00034812,2]
[391984852,1761057047613,-365.74192553,0.00034812,2]
[391984853,1761057047623,-167.07748782,0.00034812,2]
[391984854,1761057047633,-150.79845362,0.00034812,2]
[391984855,1761057047644,-100545.85651647,0.00034812,2]
[391984856,1761057047654,-259.32358751,0.00034812,2]
[391984857,1761057047665,-3777.11990216,0.00034812,2]
[391984858,1761057047675,-35399.08474419,0.00034812,4]
[391984859,1761057047686,-17481.22242505,0.00034812,2]
[391984860,1761057047696,-1999.79221574,0.00034812,2]
[391984861,1761057047706,-635.71448984,0.00034812,2]
[391984862,1761057047717,-203.06,0.00034845,60]
[391984863,1761057047728,-478.0,0.00034845,60]
[391984864,1761057047738,-1444.0,0.00034849,120]
[391984865,1761057047749,-2999.0,0.00034867,120]
[391984866,1761057047760,-3172.0,0.00034867,2]
[391984867,1761057047770,-429.11,0.00034873,60]
[391984868,1761057047779,-500.0,0.00034873,5]
[391984869,1761057047789,-1060.0,0.000349,14]
[391984870,1761057047799,-2319.74,0.000349,14]
[391984871,1761057047812,-151.0,0.000349,11]
[391984872,1761057047822,-151.0,0.000349,11]
[391984873,1761057047833,-151.0,0.000349,19]
[391984874,1761057047844,-151.0,0.000349,16]
[391984875,1761057047853,-151.0,0.000349,16]
[391984876,1761057047863,-151.0,0.000349,11]
[391984877,1761057047873,-151.0,0.000349,11]
[391984878,1761057047882,-151.0,0.000349,11]
[391984879,1761057047892,-151.0,0.000349,10]
[391984880,1761057047902,-151.0,0.000349,17]
[391984881,1761057047913,-151.0,0.000349,24]
[391984882,1761057047923,-203.06,0.00034945,60]
[391984883,1761057047933,-478.0,0.00034945,60]
[391984884,1761057047942,-255.45505438,0.0003499,2]
[391984885,1761057047952,-999.98,0.00035,2]
[391984886,1761057047962,-1000.0,0.00035,2]
[391984887,1761057047973,-10680.54958799,0.00035,2]
[391984888,1761057047983,-655.74705258,0.00035,2]
[391984889,1761057047993,-25515.4010268,0.00035,2]
[391984890,1761057048004,-500.0,0.00035027,30]
[391984891,1761057048014,-203.06,0.00035045,60]
[391984892,1761057048024,-478.0,0.00035045,60]
[391984893,1761057048033,-429.11,0.00035073,60]
[391984894,1761057048043,-426.81050954,0.00035129,2]
[391984895,1761057048055,-203.06,0.00035145,60]
[391984896,1761057048066,-478.0,0.00035145,60]
[391984897,1761057048075,-203.06,0.00035245,60]
[391984898,1761057048086,-478.0,0.00035245,60]
[391984899,1761057048096,-429.11,0.00035273,60]
[391984900,1761057048106,-1270.21469188,0.000353,120]
[391984901,1761057048116,-169.98413699,0.000353,120]
[391984902,1761057048126,-1000.0,0.000353,2]
[391984903,1761057048137,-500.0,0.00035301,30]
[391984904,1761057048148,-203.06,0.00035345,60]
[391984905,1761057048158,-478.0,0.00035345,60]
[391984906,1761057048169,-429.11,0.00035373,60]
[391984907,1761057048180,-1000.0,0.00035421,5]
[391984908,1761057048190,-203.06,0.00035445,60]
[391984909,1761057048200,-478.03496963,0.00035445,60]
[391984910,1761057048211,-429.11,0.00035473,60]
[391984911,1761057048221,-1298.0,0.000355,7]
[391984912,1761057048232,-203.06,0.00035545,60]
[391984913,1761057048243,-2999.0,0.00035552,120]
[391984914,1761057048254,-429.42241016,0.00035573,60]
[391984915,1761057048264,-500.0,0.00035575,30]
[391984916,1761057048275,-1000.0,0.000356,2]
[391984917,1761057048285,-203.06,0.00035645,60]
[391984918,1761057048296,-203.06,0.00035745,60]
[391984919,1761057048308,-203.06,0.00035845,60]
[391984920,1761057048319,-1000.0,0.000359,2]
[391984921,1761057048329,-203.06,0.00035945,60]
[391984922,1761057048340,-1500.0,0.00035968,5]
[391984923,1761057048350,-1613.0,0.00035994,2]
[391984924,1761057048361,-203.06,0.00036045,60]
[391984925,1761057048371,-1701.7,0.00036072,3]
[391984926,1761057048381,-850.86,0.00036072,3]
[391984927,1761057048391,-425.42,0.00036072,3]
[391984928,1761057048402,-203.06,0.00036145,60]
[391984929,1761057048412,-407.79,0.0003618,2]
[391984930,1761057048422,-1000.0,0.000362,2]
[391984931,1761057048433,-203.45999339,0.0003621,2]
[391984932,1761057048443,-2999.0,0.00036236,120]
[391984933,1761057048454,-264.64467887,0.0003624,2]
[391984934,1761057048464,-203.06,0.00036245,60]
[391984935,1761057048474,-203.06,0.00036345,60]
[391984936,1761057048484,-543.9692854,0.00036399,120]
[391984937,1761057048496,-1270.21469188,0.000364,120]
[391984938,1761057048507,-169.98413699,0.000364,120]
[391984939,1761057048518,-1060.0,0.000364,14]
[391984940,1761057048528,-2319.74,0.000364,14]
[391984941,1761057048539,-203.06,0.00036445,60]
[391984942,1761057048549,-1000.0,0.000365,2]
[391984943,1761057048562,-2000.0,0.00036516,5]
[391984944,1761057048573,-203.06,0.00036545,60]
[391984945,1761057048583,-1437.46,0.00036605,2]
[391984946,1761057048595,-203.06,0.00036645,60]
[391984947,1761057048605,-261.83457,0.000367,120]
[391984948,1761057048615,-203.06,0.00036745,60]
[391984949,1761057048625,-1000.0,0.000368,2]
[391984950,1761057048636,-158.48533248,0.00036822,2]
[391984951,1761057048647,-203.06,0.00036845,60]
[391984952,1761057048657,-247.75451626,0.00036921,120]
[391984953,1761057048669,-203.06,0.00036945,60]
[391984954,1761057048679,-500.0,0.00036973,4]
[391984955,1761057048690,-5000.0,0.00036984,4]
[391984956,1761057048700,-1298.0,0.00037,7]
[391984957,1761057048710,-203.06,0.00037045,60]
[391984958,1761057048720,-2500.0,0.00037064,5]
[391984959,1761057048730,-1000.0,0.000371,2]
[391984960,1761057048739,-203.06,0.00037145,60]
[391984961,1761057048750,-203.06,0.00037245,60]
[391984962,1761057048760,-203.06,0.00037345,60]
[391984963,1761057048770,-890.25,0.00037348,3]
[391984964,1761057048780,-277.0,0.000374,12]
[391984965,1761057048790,-1000.0,0.000374,2]
[391984966,1761057048800,-9127.31365814,0.000374,15]
[391984967,1761057048813,-203.06,0.00037445,60]
[391984968,1761057048823,-1270.21469188,0.000375,120]
[391984969,1761057048833,-169.98413699,0.000375,120]
[391984970,1761057048842,-19933.0,0.000375,2]
[391984971,1761057048853,-2000.00736557,0.000375,60]
[391984972,1761057048863,-1000.0,0.00037521,4]
[391984973,1761057048873,-203.06,0.00037545,60]
[391984974,1761057048883,-1223.37,0.00037606,30]
[391984975,1761057048894,-203.06,0.00037645,60]
[391984976,1761057048905,-1000.0,0.000377,2]
[391984977,1761057048914,-203.06,0.00037745,60]
[391984978,1761057048922,-8114.93805914,0.0003779,3]
[391984979,1761057048931,-1014.76025187,0.000378,2]
[391984980,1761057048941,-203.06,0.00037845,60]
[391984981,1761057048950,-1060.0,0.000379,14]
[391984982,1761057048960,-2319.74,0.000379,14]
[391984983,1761057048970,-203.06,0.00037945,60]
[391984984,1761057048980,-575.69,0.00038,2]
[391984985,1761057048990,-207.34712528,0.00038,7]
[391984986,1761057049000,-203.06,0.00038045,60]
[391984987,1761057049012,-329.0,0.00038102,2]
[391984988,1761057049021,-632.0,0.00038119,2]
[391984989,1761057049031,-2164.0,0.00038119,2]
[391984990,1761057049041,-411.0,0.00038119,2]
[391984991,1761057049053,-428.678,0.00038119,2]
[391984992,1761057049062,-203.06,0.00038145,60]
[391984993,1761057049072,-927.0,0.00038155,2]
[391984994,1761057049083,-329.0,0.00038171,7]
[391984995,1761057049093,-426.81050954,0.00038197,2]
[391984996,1761057049104,-203.06,0.00038245,60]
[391984997,1761057049114,-329.0,0.0003827,2]
[391984998,1761057049124,-329.0,0.00038275,2]
[391984999,1761057049135,-203.06,0.00038345,60]
[391985000,1761057049144,-329.0,0.00038416,120]
[391985001,1761057049154,-203.06,0.00038445,120]
[391985002,1761057049164,-1298.0,0.000385,7]
[391985003,1761057049175,-203.06,0.00038545,120]
[391985004,1761057049185,-1270.21469188,0.000386,120]
[391985005,1761057049195,-150.0,0.00038643,60]
[391985006,1761057049205,-203.06,0.00038645,120]
[391985007,1761057049215,-329.0,0.00038662,2]
[391985008,1761057049225,-329.0,0.00038682,2]
[391985009,1761057049235,-1607.0,0.00038685,60]
[391985010,1761057049246,-329.0,0.00038718,2]
[391985011,1761057049258,-4205.0,0.00038743,120]
[391985012,1761057049269,-203.06,0.00038745,120]
[391985013,1761057049280,-160.38679295,0.00038795,7]
[391985014,1761057049290,-9658.94659509,0.000388,2]
[391985015,1761057049300,-203.06,0.00038845,120]
[391985016,1761057049314,-927.0,0.00038905,120]
[391985017,1761057049324,-203.06,0.00038945,120]
[391985018,1761057049335,-927.0,0.00038947,2]
[391985019,1761057049345,-2258.0,0.00039034,5]
[391985020,1761057049355,-203.06,0.00039045,120]
[391985021,1761057049368,-203.06,0.00039145,120]
[391985022,1761057049378,-500.0,0.00039184,14]
[391985023,1761057049388,-500.0,0.00039184,14]
[391985024,1761057049398,-203.06,0.00039245,120]
[391985025,1761057049408,-1500.0,0.00039342,60]
[391985026,1761057049418,-203.06,0.00039345,120]
[391985027,1761057049429,-1060.0,0.000394,14]
[391985028,1761057049440,-2319.74,0.000394,14]
[391985029,1761057049450,-203.06,0.00039445,120]
[391985030,1761057049461,-329.0,0.00039467,120]
[391985031,1761057049471,-203.06,0.00039545,120]
[391985032,1761057049481,-203.06,0.00039645,120]
[391985033,1761057049492,-1000.0,0.00039706,8]
[391985034,1761057049505,-203.06,0.00039745,120]
[391985035,1761057049514,-329.0,0.00039776,2]
[391985036,1761057049524,-1437.46,0.00039799,2]
[391985037,1761057049535,-1270.21469188,0.000398,120]
[391985038,1761057049544,-203.06,0.00039845,120]
[391985039,1761057049558,-879.72619145,0.00039871,120]
[391985040,1761057049568,-1635.1386967,0.0003989,120]
[391985041,1761057049580,-203.06,0.00039945,120]
[391985042,1761057049590,-1115.73404669,0.0004,30]
[391985043,1761057049600,-500.0,0.0004,2]
[391985044,1761057049610,-1123.57203643,0.0004,30]
[391985045,1761057049621,-373.61661579,0.0004,120]
[391985046,1761057049632,-500.0,0.0004,120]
[391985047,1761057049643,-172.59837993,0.0004,30]
[391985048,1761057049654,-168.34904801,0.0004,120]
[391985049,1761057049665,-600.02885872,0.0004,120]
[391985050,1761057049675,-1298.0,0.0004,7]
[391985051,1761057049685,-329.0,0.00040023,2]
[391985052,1761057049696,-203.06,0.00040045,120]
[391985053,1761057049706,-203.06,0.00040145,120]
[391985054,1761057049717,-329.0,0.0004018,7]
[391985055,1761057049727,-927.0,0.0004021,7]
[391985056,1761057049737,-203.06,0.00040245,120]
[391985057,1761057049750,-329.0,0.00040305,2]
[391985058,1761057049760,-203.06,0.00040345,120]
[391985059,1761057049771,-329.0,0.00040421,7]
[391985060,1761057049782,-203.26119997,0.00040445,120]
[391985061,1761057049792,-329.0,0.00040477,2]
[391985062,1761057049805,-1398.13,0.0004074,30]
[391985063,1761057049815,-249.26487862,0.00040767,120]
[391985064,1761057049826,-299.80929662,0.00040829,2]
[391985065,1761057049836,-1270.21469188,0.00041,120]
[391985066,1761057049847,-1111.0,0.00041,30]
[391985067,1761057049857,-1206.81129181,0.00041,120]
[391985068,1761057049867,-8114.93805914,0.00041076,3]
[391985069,1761057049878,-8114.93805914,0.00041086,3]
[391985070,1761057049889,-1437.46,0.00041095,2]
[391985071,1761057049899,-1437.46,0.00041095,2]
[391985072,1761057049910,-50000.0,0.00041096,120]
[391985073,1761057049920,-1437.46,0.00041118,2]
[391985074,1761057049930,-632.0,0.00041119,2]
[391985075,1761057049940,-2164.0,0.00041119,2]
[391985076,1761057049951,-411.0,0.00041119,2]
[391985077,1761057049961,-411.0,0.00041119,2]
[391985078,1761057049971,-329.0,0.00041131,2]
[391985079,1761057049982,-426.81050954,0.00041265,28]
[391985080,1761057049992,-927.0,0.00041457,2]
[391985081,1761057050003,-2142.0,0.0004157,120]
[391985082,1761057050013,-2142.0,0.0004158,120]
[391985083,1761057050023,-8114.93805914,0.0004159,3]
[391985084,1761057050033,-2142.0,0.0004159,120]
[391985085,1761057050043,-16229.8761183,0.0004159,3]
[391985086,1761057050057,-25202.79021145,0.000416,30]
[391985087,1761057050067,-81149.3805914,0.000416,3]
[391985088,1761057050077,-1437.46,0.00041609,2]
[391985089,1761057050088,-1437.46,0.00041609,2]
[391985090,1761057050098,-1437.46,0.00041609,2]
[391985091,1761057050108,-1437.46,0.00041609,2]
[391985092,1761057050118,-1437.46,0.00041609,2]
[391985093,1761057050128,-1437.46,0.00041609,2]
[391985094,1761057050139,-1437.46,0.00041609,2]
[391985095,1761057050149,-1437.46,0.00041609,2]
[391985096,1761057050159,-1437.46,0.00041609,2]
[391985097,1761057050169,-1437.46,0.00041609,2]
[391985098,1761057050180,-1437.46,0.00041609,2]
[391985099,1761057050191,-1437.46,0.00041609,2]
[391985100,1761057050201,-1437.46,0.00041609,2]
[391985101,1761057050212,-1437.46,0.00041609,2]
[391985102,1761057050222,-1437.46,0.00041609,2]
[391985103,1761057050233,-1437.46,0.00041609,2]
[391985104,1761057050243,-1437.47,0.00041609,2]
[391985105,1761057050254,-100000.0,0.0004161,2]